Cogmind - Beta 17 @@@ ROGUE MODE // 2026.07.07 @ 21:15:09 Player: blabber Result: Destroyed by as-52762 with Assembled Blade Performance ------------- Evolutions (0) 0 Regions Visited (2) 400 Robots Destroyed (19) 95 Value Destroyed (453) 453 Prototype IDs (0) 0 Alien Tech Used (0) 0 Bonus (0) 0 TOTAL SCORE: 948 Bonus ------- None Cogmind --------- Core Integrity 0/250 Matter 290/300 Energy 250/250 System Corruption 5% Temperature Cool (5) Movement Rolling (120) Ox2 Location -10/Mines Parts ------- > --- POWER (1) -------- Ion Engine > --- PROPULSION (2) --- Wheel Compact Wheel > --- UTILITY (2) ------ Small Storage Unit High-capacity Storage Unit > --- WEAPON (2) ------- Light Assault Rifle Light Cannon > --- INVENTORY (20) --- Light Ion Engine Aluminum Leg Heat Sink Experimental Sensor Array Light Assault Rifle Peak State ------------ > --- POWER ------------ Ion Engine > --- PROPULSION ------- Wheel Compact Wheel > --- UTILITY ---------- Small Storage Unit High-capacity Storage Unit > --- WEAPON ----------- Light Assault Rifle Light Cannon > --- INVENTORY -------- Light Ion Engine Aluminum Leg Heat Sink Experimental Sensor Array Light Assault Rifle [Rating: 8] Favorites ----------- Power Ion Engine Engine Ion Engine Propulsion Aluminum Leg Leg Aluminum Leg Wheel Wheel Utility Small Storage Unit Device Seismic Detector Storage Small Storage Unit Weapon Light Assault Rifle Ballistic Gun Light Assault Rifle Ballistic Cannon Light Cannon Launcher Grenade Launcher Build | -11 -10 -10 ------- Run | Yrd Mat Min Slots Evolved . | . . . Power . | . . . Propulsion . | . . . Utility . | . . . Weapon . | . . . Parts Attached 21 | 6 11 4 Power 3 | 1 1 1 Engine 3 | 1 1 1 Core . | . . . Reactor . | . . . Propulsion 6 | 2 4 . Treads . | . . . Leg 4 | 2 2 . Wheel 2 | . 2 . Hover . | . . . Flight . | . . . Utility 4 | 1 2 1 Device 2 | . 2 . Storage 2 | 1 . 1 Processor . | . . . Hackware . | . . . Protection . | . . . Artifact . | . . . Weapon 8 | 2 4 2 Energy Gun . | . . . Energy Cannon . | . . . Ballistic Gun 6 | 2 3 1 Ballistic Cannon 1 | . . 1 Launcher 1 | . 1 . Special Weapon . | . . . Impact Weapon . | . . . Slashing Weapon . | . . . Piercing Weapon . | . . . Special Melee Weapon . | . . . Unidentified Prototypes . | . . . Parts Lost 2 | . 2 . Power . | . . . Propulsion 1 | . 1 . Utility 1 | . 1 . Weapon . | . . . Highest Loss Streak 1 | . 1 . To Critical Strikes . | . . . Average Backups 5 | 2 6 5 Power 1 | . 1 1 Propulsion 1 | 1 2 1 Utility . | . . 1 Weapon 1 | . 2 . Tool/Special . | . . . Unused Backups 3 | . . 3 Power 1 | . . 1 Propulsion . | . . . Utility 1 | . . 1 Weapon 1 | . . 1 Tool/Special . | . . . Average Slot Usage (%) 94 | . 96 90 Engine 14 | . 14 14 Leg 20 | . 27 6 Wheel 7 | . . 21 Device 7 | . 11 . Storage 15 | . 14 19 Ballistic Gun 23 | . 26 16 Ballistic Cannon 3 | . . 11 Peak Build Rating 8 | 6 7 8 Average Rating 6 | 4 6 6 On Entrance 4 | . 6 6 Avg Prop Armor Cover (%) . | . . . Naked Turns . | . . . Heaviest Build 54 | 12 15 54 Greatest Support 26 | 20 26 26 Greatest Overweight (x) 2 | . 1 2 Average Overweight (x) . | . . . Largest Inventory Capacity 20 | 8 8 20 Average Capacity 9 | 6 8 12 Most Carried 8 | 5 8 7 Average Carried 5 | 2 6 5 Final Capacity 20 | 8 8 20 Final Carried 6 | 3 6 5 Class Distribution -------------------- 100% | Mutant Dominant Class ---------------- Mutant | -10/Materials Mutant | -10/Mines Resources | -11 -10 -10 ----------- Run | Yrd Mat Min Matter Collected 635 | 238 261 136 Remotely . | . . . Salvage Created 540 | . 428 112 Parts 42 | . 30 12 Haulers Intercepted . | . . . Recyclers Shooed 2 | . 1 1 Parts Field Recycled . | . . . Retrieved Matter . | . . . Parts Self-Destructed . | . . . Prevented . | . . . Parts Restored . | . . . Kills | -11 -10 -10 ------- Run | Yrd Mat Min Combat Hostiles Destroyed 16 | . 11 5 Guns 11 | . 9 2 Cannons 3 | . . 3 AOE 2 | . 2 . Classes Destroyed 5 | . 5 . Builder 1 | . 1 . Recycler 1 | . 1 . Watcher 1 | . 1 . Swarmer 6 | . 3 3 Grunt 10 | . 8 2 Best Kill Streak 4 | . 4 3 Combat Bots Only 3 | . 3 3 Max Kills in Single Turn 3 | . 3 2 Gunslinging . | . . . Exploded 2 | . 2 . Melee . | . . . Uniques/NPCs Destroyed . | . . . Combat | -11 -10 -10 -------- Run | Yrd Mat Min Hostile Shots Fired 91 | . 67 24 Missed 28 | . 22 6 Hits 63 | . 45 18 Melee 3 | . . 3 Projectile 60 | . 45 15 Damage Taken 1061 | . 809 252 Core 262 | . 117 145 Absorbed by Shields . | . . . Core Remaining (%) 100 | 100 . . Volleys Fired 50 | . 33 17 Largest 2 | . 2 2 Hottest 50 | . 50 50 Shots Fired 94 | . 61 33 Gun 75 | . 58 17 Cannon 16 | . . 16 Launcher 3 | . 3 . Special . | . . . Kinetic 91 | . 58 33 Thermal . | . . . Explosive 3 | . 3 . Electromagnetic . | . . . Robot Hit Streak 9 | . 9 3 Robot Miss Streak 5 | . 5 5 Penetration Max . | . . . Secondary Targets 2 | . 2 . Max Gunslinging Chain 1 | . 1 . Shots Hit Robots 48 | . 37 11 Core Hits 35 | . 27 8 Critical Kills . | . . . Critical Parts Destroyed . | . . . Critical Strikes . | . . . Melee Attacks . | . . . Impact . | . . . Slashing . | . . . Piercing . | . . . Sneak Attacks . | . . . Combat Hostiles . | . . . Follow-up Attacks . | . . . Damage Inflicted 725 | . 555 170 Guns 389 | . 330 59 Cannons 111 | . . 111 Explosions 225 | . 225 . Melee . | . . . Ramming . | . . . Kinetic 500 | . 330 170 Thermal . | . . . Explosive 225 | . 225 . Electromagnetic . | . . . Impact . | . . . Slashing . | . . . Piercing . | . . . Highest Corruption 5 | . 5 5 Average Corruption 5 | . 5 5 Corruption Purged . | . . . Corruption Blocked . | . . . Effects 6 | . 1 5 Matter Fused 1 | . . 1 Data Loss (minor) 3 | . . 3 Data Loss (major) 1 | . 1 . Weapon Failures 1 | . . 1 Overload Shots . | . . . Overflow Damage . | . . . Projectiles . | . . . Explosions . | . . . Melee . | . . . Knockbacks 1 | . . 1 Impact . | . . . Kinetic 1 | . . 1 Secondary . | . . . Self-Inflicted Damage 27 | . 27 . Shots 1 | . 1 . Rammed . | . . . Targets Rammed . | . . . Kicked . | . . . Crushed . | . . . Highest Temperature 32 | . 32 20 Average Temperature 9 | . 10 8 Received Heat Transfer 294 | . 243 51 Siege Activations . | . . . Martial Activations . | . . . Shielding Activations . | . . . Robots Disrupted . | . . . Combat Hostiles . | . . . Robots Corrupted . | . . . Combat Hostiles . | . . . Parts Fried . | . . . Impact Corruptions . | . . . Robots Melted . | . . . Combat Hostiles . | . . . Parts Melted . | . . . Heat Transferred . | . . . Parts Sabotaged . | . . . Parts Stolen . | . . . Parts Stripped . | . . . Power Chain Reactions . | . . . Alert | -11 -10 -10 ------- Run | Yrd Mat Min Maximum Alert Level . | . . . Low Security (%) 100 | 100 100 100 Level 1 . | . . . Level 2 . | . . . Level 3 . | . . . Level 4 . | . . . Level 5 . | . . . High Security . | . . . Max Security . | . . . Peak Influence 141 | . 141 104 Initial 34 | . . 34 Average 53 | . 58 59 Influence Increases 421 | . 301 120 Destroy 0b10 Robot/C 320 | . 220 100 Destroy 0b10 Robot/NC 15 | . 15 . Destroy Leader 72 | . 52 20 Destroy Structure 14 | . 14 . Influence Decreases 367 | . 212 155 Entered New Map 55 | . . 55 Time Decay 292 | . 192 100 Lost Part 20 | . 20 . Squads Dispatched 3 | . 3 . Investigation 1 | . 1 . Extermination . | . . . Reinforcement 2 | . 2 . Assault . | . . . Garrison . | . . . Intercept . | . . . Searches Triggered . | . . . Construction Impeded . | . . . Haulers Reinforced . | . . . Active Scanning Responses . | . . . Cargo Convoy Interrupts . | . . . Stealth | -11 -10 -10 --------- Run | Yrd Mat Min Distress Signals 2 | . 2 . Communications Jammed . | . . . Distress Signals . | . . . Times Spotted 30 | . 20 10 Peak Tracking Total 11 | . 5 11 Tactical Retreats . | . . . Traps | -11 -10 -10 ------- Run | Yrd Mat Min Traps Triggered 2 | . 2 . Indirectly . | . . . Trap Hack Attempts . | . . . Triggered . | . . . Disarmed . | . . . Reprogrammed . | . . . Reused . | . . . Traps Extracted . | . . . Installed . | . . . Triggered . | . . . Machines | -11 -10 -10 ---------- Run | Yrd Mat Min Machines Disabled . | . . . Max in Single Turn . | . . . Machines Repaired . | . . . Machines Dismantled . | . . . Machines Sabotaged . | . . . Overloaded Fab Kills . | . . . Hacking | -11 -10 -10 --------- Run | Yrd Mat Min Machines Accessed 2 | . 2 . Terminals 1 | . 1 . Fabricators . | . . . Repair Stations . | . . . Recycling Units 1 | . 1 . Scanalyzers . | . . . Garrison Access . | . . . Total Hacks 3 | . 3 . Successful 2 | . 2 . Failed 1 | . 1 . Catastrophic . | . . . Database Lockouts . | . . . Manual . | . . . Terminals 1 | . 1 . Fabricators . | . . . Repair Stations . | . . . Recycling Units 2 | . 2 . Scanalyzers . | . . . Garrison Access . | . . . Terminal Hacks . | . . . Fabricator Hacks . | . . . Repair Station Hacks . | . . . Recycling Unit Hacks 2 | . 2 . Report Inventory 1 | . 1 . Retrieve Components 1 | . 1 . Scanalyzer . | . . . Garrison Access Hacks . | . . . Unauthorized Hacks . | . . . Terminals . | . . . Fabricators . | . . . Repair Stations . | . . . Recycling Units . | . . . Scanalyzers . | . . . Garrison Access . | . . . Data Cores Recovered . | . . . Used . | . . . Hacking Detections 1 | . 1 . Full Trace Events . | . . . Feedback Events . | . . . Feedback Blocked . | . . . Robot Schematics Acquired . | . . . Robots Built . | . . . Authchips . | . . . Time . | . . . Total Robot Build Rating . | . . . Part Schematics Acquired . | . . . Parts Built . | . . . Authchips . | . . . Time . | . . . Total Part Build Rating . | . . . Part Studies Acquired . | . . . Parts Repaired . | . . . Time . | . . . Parts Recycled . | . . . Recycled Matter . | . . . Retrieved Matter . | . . . Retrieved Components 9 | . 9 . Parts Scanalyzed . | . . . Part Schematics Acquired . | . . . Parts Damaged . | . . . Bothacking | -11 -10 -10 ------------ Run | Yrd Mat Min Used RIF Installer . | . . . Robots Hacked . | . . . Non-combat . | . . . Combat . | . . . Robot Hacks Applied . | . . . Relay Couplers Released . | . . . Fabnet Peak Effective % . | . . . Robots Rewired . | . . . Allies Hacked . | . . . Hacks Repelled . | . . . Allies | -11 -10 -10 -------- Run | Yrd Mat Min Total Allies . | . . . Largest Group . | . . . Highest-Rated Group . | . . . Highest-Rated Ally . | . . . Total Orders . | . . . Ally Attacks . | . . . Total Damage . | . . . Kills . | . . . Allies Corrupted . | . . . Allies Melted . | . . . Intel | -11 -10 -10 ------- Run | Yrd Mat Min Active Infowar (turns) 387 | . 387 . Seismic 387 | . 387 . Robot Analysis Total . | . . . Derelict Logs Recovered 1 | . . 1 Drone Launches . | . . . Drone Recoveries . | . . . Exploration | -11 -10 -10 ------------- Run | Yrd Mat Min Turns Passed 751 | 64 469 218 Spaces Moved 465 | 47 286 132 Core 10 | 10 . . Treads . | . . . Legs 349 | 37 284 28 Wheels 106 | . 2 104 Hover . | . . . Flight . | . . . Fastest Speed 50 | 50 90 90 Average Speed 116 | 105 120 111 Slowest Speed 190 | 120 190 120 Overloaded Moves . | . . . Propulsion Burnouts . | . . . Robots Hopped . | . . . Potential Cave-ins . | . . . Cave-ins Triggered 1 | . 1 . Exploration Rate (%) 20 | 3 26 33 Regions Visited 2 Branch Regions 1 Pre-discovered Areas . | . . . Known Exits Taken . | . . . Unknown Exits Taken 2 | 1 1 . Scrap Searched 1 | . . 1 Spaces Dug . | . . . Terrain Destroyed 16 | . 16 . Melee . | . . . Projectile . | . . . AOE 16 | . 16 . Terrain Rammed . | . . . Walls Destroyed . | . . . Machines Disabled . | . . . Actions | -11 -10 -10 --------- Run | Yrd Mat Min Total 594 | 61 357 176 Wait 17 | . 6 11 Move 463 | 46 285 132 Hop . | . . . Pick Up 26 | 9 13 4 Fast Attach . | . . . Attach 15 | 6 5 4 Detach 2 | . . 2 Swap 11 | . 9 2 Drop 10 | . 6 4 Fire 50 | . 33 17 Melee . | . . . Ram . | . . . Kick . | . . . Crush . | . . . Escape Stasis . | . . . Rewire . | . . . Trap . | . . . Miscellaneous . | . . . Route ------- -11/Scrapyard -10/Materials -10/Mines History --------- Turn | Location | Event 9 | -11/Scrapyard | Discovered new exit (range 15) 65 | -11/Scrapyard | Entered Materials 312 | -10/Materials | Build established: Mutant 477 | -10/Materials | Crushed by falling debris 519 | -10/Materials | Discovered new exit (range 12) 534 | -10/Materials | Entered Mines 589 | -10/Mines | Core integrity fell below 50% 705 | -10/Mines | Learned 4 Materials zone layouts 725 | -10/Mines | Assembled infested the area 727 | -10/Mines | Found a damaged Exp. Sensor Array with a note attached 729 | -10/Mines | Found Prototype Device 751 | -10/Mines | Core integrity fell below 20% 752 | -10/Mines | Destroyed by as-52762 with Assembled Blade Last Messages --------------- Acquired 10 matter. K-01 Serf collects debris. R-06 Scavenger collects Ion Engine. Acquired derelict log, extracted data. Data stored: Materials zone layouts (x4). [Achievement: I Have A Map?] K-01 Serf collects debris. ALERT: Infestation in the mines, dispatching Demolisher response squad. A damaged part is partially visible under some rubble. There's a note attached: "Everyone keeps telling us we should avoid high-traffic areas because that's where patrols are more likely to show up, but that doesn't do us much good if we can't spot those areas until they're on top of us... With this we can! Deliver it to Megawrench for repairs then we'll never be afraid of an ambush while sneaking around Materials again, ha." Acquired Prototype Device. [Achievement: First Step to Greatness] Map ----- +----------------------------------------------------+ | ??????????????##### ### #?????????????? | | ??????????????????## ## #?????????????? | | ???????????????????# #?????????????? | | ???????????????????# ## ##?????????????? | | ??????????????????# ## #??????????????? | | ??????????????????# ## #??????????????? | | "?????????????## ### #??????????????? | | ??????????????####?# #??????????????? | | ????????????????????????# #??????????????? | | ????????????????????????# #???????? #????? | | ??????????????????????### ###????? #????? | | ?????????????????????## ##??? #????? | | ????????????????????## ##?# #?????? | | ??????????????????### ## #?????? | | ?????????????????## ##????? | | ?????????????????# ##???? | | ?????????????????# ## #???? | | ?????????????????## #### #??? | | ??????????????????####??# ## #?? | | ????????????????????????# ##?# #?? | | ????????????????????????# ####???? ??? | | ????????????????????????# #???????? ???? | | ????????????????????????# #?????????????? | | ?????????????????######## %#?????????????? | | ?????????? !!%*aa #?????????????? | | ?????????????????########@##?????????????? | | ????????????????????????# #??????????????? | | ????????????????????????# #??????????????? | | ????????????????????????# #??????????????? | | ???????????????????????? ??????????????? | | ???????????????????????? ??????????????? | | ???????????????????????? ??????????????? | | ???????????????????????? ??????????????? | | ????????????????????????###??????????????? | | ?????????????????????????????????????????? | | ?????????????????????????????????????????? | | ?????????????????????????????????????????? | | ?????????????????????????????????????????? | | ?????????????????????????????????????????? | | ?????????????????????????????????????????? | | | | | | | | | | | | | | | | | | | | | +----------------------------------------------------+ Best States ------------- Heat Dissipation 25 Energy Generation 10 Energy Capacity 250 Matter Stores 300 Matter Capacity 300 Sight Range 16 Terrain Scan Density 10 Evasion (%) 55 Item Schematics ----------------- None Robot Schematics ------------------ None Fabricated ------------ Nothing Repaired ---------- Nothing Studied --------- None Alien Tech Used ----------------- None Achievements -------------- DATA ERROR: Steam Global Achievement% First Step to Greatness I Have A Map? Unlikely Earthworm Challenges ------------ None Game ------ Seed VortexFactoryJetlance Manual? 0 Play Time 00:22:44 Cumulative 1.1 hours Start 2026.07.07 @ 20:50:36 End 2026.07.07 @ 21:15:09 Sessions 1 Manual Loads 0 Difficulty Rogue Special Mode None Game No. 2 Rogue 2 Adventurer 0 Explorer 0 Win Type - Total 0 Types 0/0/0/0/0/0/0/0/0/0 Lore% 0 Gallery% 2 Achievement% 2 Wizard Run 0 Options --------- Layout 1 ASCII 0 Keyboard 0 Movement Vi Keybinds 0 Fullscreen 1 Font 20/SmallcapsGlow Map View 56x47 Zoom Use 9% Tactical HUD 0 Map Filters NONE Filters NONE Steam 0 RUN: 4d200413-0705-424e-9666-43d691411e99